[Event "Titled Tuesday Blitz August 22 Late 2023"]
[White "Jorajuria Mendoza, Algol"]
[Black "matenitian"]
[WhiteFideId "5128897"]
[WhiteElo "2401"]
[BlackElo "2535"]
[Result "1-0"]
[Round "4"]
[TimeControl "180+1"]
[Date "2023.08.22"]
[WhiteClock "0:00:04"]
[BlackClock "0:00:00"]
[Board "132"]

1. e4 {[%clk 0:03:00]}  e5 {[%clk 0:02:59]} 2. Nf3 {[%clk 0:03:00]}  Nc6 {[%clk 0:02:58]} 3. Bb5 {[%clk 0:03:00]}  Nge7 {[%clk 0:02:58]} 4. Nc3 {[%clk 0:02:55]}  Ng6 {[%clk 0:02:56]} 5. h4 {[%clk 0:02:54]}  Be7 {[%clk 0:02:55]} 6. h5 {[%clk 0:02:52]}  Nh4 {[%clk 0:02:55]} 7. Nxh4 {[%clk 0:02:34]}  Bxh4 {[%clk 0:02:56]} 8. Qg4 {[%clk 0:02:26]}  Bg5 {[%clk 0:02:48]} 9. d3 {[%clk 0:02:03]}  h6 {[%clk 0:02:32]} 10. Bxc6 {[%clk 0:01:23]}  dxc6 {[%clk 0:02:29]} 11. Bxg5 {[%clk 0:01:23]}  Qxg5 {[%clk 0:02:07]} 12. Qf3 {[%clk 0:01:08]}  Bg4 {[%clk 0:02:04]} 13. Qg3 {[%clk 0:01:07]}  O-O-O {[%clk 0:01:57]} 14. f3 {[%clk 0:01:08]}  Qe3+ {[%clk 0:01:49]} 15. Ne2 {[%clk 0:01:07]}  Be6 {[%clk 0:01:49]} 16. Qxe5 {[%clk 0:01:04]}  Rhe8 {[%clk 0:01:26]} 17. Qf4 {[%clk 0:01:03]}  Qb6 {[%clk 0:01:25]} 18. b3 {[%clk 0:00:51]}  Qa5+ {[%clk 0:01:16]} 19. Qd2 {[%clk 0:00:49]}  Qa3 {[%clk 0:01:11]} 20. Qc1 {[%clk 0:00:47]}  Qc5 {[%clk 0:01:09]} 21. Qb2 {[%clk 0:00:43]}  f5 {[%clk 0:01:08]} 22. O-O-O {[%clk 0:00:39]}  Qe3+ {[%clk 0:01:05]} 23. Rd2 {[%clk 0:00:39]}  fxe4 {[%clk 0:01:04]} 24. fxe4 {[%clk 0:00:39]}  Bg4 {[%clk 0:00:57]} 25. Nc3 {[%clk 0:00:36]}  Rf8 {[%clk 0:00:51]} 26. Nd1 {[%clk 0:00:36]}  Bxd1 {[%clk 0:00:47]} 27. Rxd1 {[%clk 0:00:36]}  Rf2 {[%clk 0:00:47]} 28. Qxg7 {[%clk 0:00:33]}  Rdf8 {[%clk 0:00:46]} 29. Qg4+ {[%clk 0:00:32]}  Kb8 {[%clk 0:00:45]} 30. c3 {[%clk 0:00:25]}  a5 {[%clk 0:00:31]} 31. Kc2 {[%clk 0:00:20]}  a4 {[%clk 0:00:31]} 32. Qh4 {[%clk 0:00:14]}  a3 {[%clk 0:00:20]} 33. g4 {[%clk 0:00:12]}  R8f3 {[%clk 0:00:19]} 34. Qd8+ {[%clk 0:00:11]}  Ka7 {[%clk 0:00:20]} 35. Qd4+ {[%clk 0:00:12]}  Qxd4 {[%clk 0:00:16]} 36. cxd4 {[%clk 0:00:13]}  Rxd2+ {[%clk 0:00:14]} 37. Rxd2 {[%clk 0:00:14]}  Rg3 {[%clk 0:00:14]} 38. e5 {[%clk 0:00:12]}  Rxg4 {[%clk 0:00:15]} 39. Kc3 {[%clk 0:00:09]}  Kb8 {[%clk 0:00:12]} 40. Rf2 {[%clk 0:00:08]}  Kc8 {[%clk 0:00:12]} 41. Rf6 {[%clk 0:00:07]}  Rg2 {[%clk 0:00:11]} 42. e6 {[%clk 0:00:04]}  Kd8 {[%clk 0:00:11]} 43. Rxh6 {[%clk 0:00:04]}  Rxa2 {[%clk 0:00:10]} 44. Rh8+ {[%clk 0:00:04]}  Ke7 {[%clk 0:00:10]} 45. Rc8 {[%clk 0:00:04]}  Rh2 {[%clk 0:00:05]} 46. Rxc7+ {[%clk 0:00:03]}  Kxe6 {[%clk 0:00:05]} 47. Rxb7 {[%clk 0:00:03]}  a2 {[%clk 0:00:05]} 48. Ra7 {[%clk 0:00:04]}  Kd5 {[%clk 0:00:02]} 49. b4 {[%clk 0:00:04]}  Rxh5 {[%clk 0:00:00]} 50. Ra5+ {[%clk 0:00:04]} 1-0


[Site "https://www.chess.com"]

[Event "Titled Tuesday Blitz August 22 Late 2023"]
[White "Ismayil, Malak"]
[Black "Albertini, Luca"]
[WhiteFideId "13412604"]
[BlackFideId "847038"]
[WhiteElo "2519"]
[BlackElo "2396"]
[Result "0-1"]
[Round "4"]
[TimeControl "180+1"]
[Date "2023.08.22"]
[WhiteClock "0:00:00"]
[BlackClock "0:00:24"]
[Board "134"]

1. e4 {[%clk 0:03:00]}  e5 {[%clk 0:02:58]} 2. Nf3 {[%clk 0:03:01]}  Nc6 {[%clk 0:02:58]} 3. Bc4 {[%clk 0:03:01]}  Bc5 {[%clk 0:02:58]} 4. d3 {[%clk 0:03:01]}  Nf6 {[%clk 0:02:58]} 5. O-O {[%clk 0:03:02]}  d6 {[%clk 0:02:58]} 6. Nc3 {[%clk 0:03:02]}  Ne7 {[%clk 0:02:59]} 7. h3 {[%clk 0:03:03]}  Ng6 {[%clk 0:02:59]} 8. Be3 {[%clk 0:03:03]}  Bb6 {[%clk 0:02:59]} 9. Bb3 {[%clk 0:02:57]}  O-O {[%clk 0:02:58]} 10. Bg5 {[%clk 0:02:49]}  c6 {[%clk 0:02:56]} 11. d4 {[%clk 0:02:47]}  exd4 {[%clk 0:02:53]} 12. Nxd4 {[%clk 0:02:48]}  h6 {[%clk 0:02:53]} 13. Be3 {[%clk 0:02:45]}  Re8 {[%clk 0:02:45]} 14. Qd3 {[%clk 0:02:44]}  Qe7 {[%clk 0:02:33]} 15. f3 {[%clk 0:02:37]}  Ne5 {[%clk 0:02:31]} 16. Qd2 {[%clk 0:02:29]}  Nh5 {[%clk 0:02:27]} 17. Bf2 {[%clk 0:02:24]}  Qg5 {[%clk 0:02:19]} 18. Qxg5 {[%clk 0:02:20]}  hxg5 {[%clk 0:02:20]} 19. Rad1 {[%clk 0:02:20]}  Kf8 {[%clk 0:02:08]} 20. Nde2 {[%clk 0:02:16]}  Bc7 {[%clk 0:02:05]} 21. Be3 {[%clk 0:02:13]}  b5 {[%clk 0:01:14]} 22. Bxg5 {[%clk 0:02:04]}  a5 {[%clk 0:01:14]} 23. a3 {[%clk 0:02:04]}  b4 {[%clk 0:01:13]} 24. axb4 {[%clk 0:02:04]}  axb4 {[%clk 0:01:14]} 25. Nb1 {[%clk 0:01:45]}  Bb6+ {[%clk 0:01:09]} 26. Kh2 {[%clk 0:01:41]}  Ba6 {[%clk 0:01:09]} 27. Rd2 {[%clk 0:00:50]}  f6 {[%clk 0:01:09]} 28. Bh4 {[%clk 0:00:41]}  Be3 {[%clk 0:01:09]} 29. Re1 {[%clk 0:00:37]}  Bxd2 {[%clk 0:01:05]} 30. Nxd2 {[%clk 0:00:38]}  g5 {[%clk 0:01:02]} 31. Bf2 {[%clk 0:00:38]}  Bxe2 {[%clk 0:00:59]} 32. Rxe2 {[%clk 0:00:38]}  Nf4 {[%clk 0:01:00]} 33. Re1 {[%clk 0:00:39]}  Ke7 {[%clk 0:00:56]} 34. g3 {[%clk 0:00:37]}  Ne6 {[%clk 0:00:54]} 35. Kg2 {[%clk 0:00:37]}  Rh8 {[%clk 0:00:54]} 36. Nf1 {[%clk 0:00:34]}  Nc5 {[%clk 0:00:52]} 37. Bxc5 {[%clk 0:00:29]}  dxc5 {[%clk 0:00:53]} 38. Ne3 {[%clk 0:00:29]}  c4 {[%clk 0:00:53]} 39. Nxc4 {[%clk 0:00:17]}  Nxc4 {[%clk 0:00:52]} 40. Bxc4 {[%clk 0:00:18]}  Rhd8 {[%clk 0:00:53]} 41. Re2 {[%clk 0:00:14]}  Rd1 {[%clk 0:00:49]} 42. e5 {[%clk 0:00:12]}  f5 {[%clk 0:00:47]} 43. Bd3 {[%clk 0:00:11]}  f4 {[%clk 0:00:46]} 44. g4 {[%clk 0:00:07]}  Raa1 {[%clk 0:00:44]} 45. Re4 {[%clk 0:00:04]}  Rg1+ {[%clk 0:00:41]} 46. Kf2 {[%clk 0:00:04]}  Rh1 {[%clk 0:00:39]} 47. Kg2 {[%clk 0:00:04]}  b3 {[%clk 0:00:35]} 48. cxb3 {[%clk 0:00:02]}  Rhd1 {[%clk 0:00:33]} 49. Be2 {[%clk 0:00:02]}  Rd2 {[%clk 0:00:32]} 50. Kf2 {[%clk 0:00:02]}  Ra2 {[%clk 0:00:31]} 51. Rb4 {[%clk 0:00:01]}  Raxb2 {[%clk 0:00:31]} 52. Re4 {[%clk 0:00:02]}  Ke6 {[%clk 0:00:31]} 53. Ke1 {[%clk 0:00:02]}  Rdc2 {[%clk 0:00:29]} 54. Bc4+ {[%clk 0:00:02]}  Ke7 {[%clk 0:00:30]} 55. Be2 {[%clk 0:00:03]}  Rxb3 {[%clk 0:00:28]} 56. Bd1 {[%clk 0:00:02]}  Rb1 {[%clk 0:00:24]} 57. Rd4 {[%clk 0:00:00]}  Rh2 {[%clk 0:00:24]} 0-1


[Site "https://www.chess.com"]

[Event "Titled Tuesday Blitz August 22 Late 2023"]
[White "laidfrq"]
[Black "Sreyas Payyappat"]
[BlackFideId "46674969"]
[WhiteElo "2395"]
[BlackElo "2517"]
[Result "1-0"]
[Round "4"]
[TimeControl "180+1"]
[Date "2023.08.22"]
[WhiteClock "0:01:09"]
[BlackClock "0:01:30"]
[Board "135"]

1. e4 {[%clk 0:02:03]}  c6 {[%clk 0:02:57]} 2. Nf3 {[%clk 0:01:56]}  d5 {[%clk 0:02:58]} 3. Nc3 {[%clk 0:01:57]}  dxe4 {[%clk 0:02:58]} 4. Nxe4 {[%clk 0:01:58]}  Nf6 {[%clk 0:02:56]} 5. Qe2 {[%clk 0:01:57]}  Nxe4 {[%clk 0:02:55]} 6. Qxe4 {[%clk 0:01:57]}  Nd7 {[%clk 0:02:56]} 7. Bc4 {[%clk 0:01:56]}  Nf6 {[%clk 0:02:57]} 8. Ne5 {[%clk 0:01:56]}  e6 {[%clk 0:02:57]} 9. Qe2 {[%clk 0:01:57]}  b5 {[%clk 0:02:56]} 10. Bb3 {[%clk 0:01:48]}  Qc7 {[%clk 0:02:51]} 11. O-O {[%clk 0:01:46]}  Bd6 {[%clk 0:02:50]} 12. d4 {[%clk 0:01:45]}  O-O {[%clk 0:02:49]} 13. Bf4 {[%clk 0:01:43]}  a6 {[%clk 0:02:39]} 14. c4 {[%clk 0:01:42]}  Bb7 {[%clk 0:02:26]} 15. c5 {[%clk 0:01:40]}  Bxe5 {[%clk 0:02:25]} 16. Bxe5 {[%clk 0:01:40]}  Qe7 {[%clk 0:02:25]} 17. Bd6 {[%clk 0:01:38]}  Qd8 {[%clk 0:02:25]} 18. Bxf8 {[%clk 0:01:39]}  Qxf8 {[%clk 0:02:24]} 19. a4 {[%clk 0:01:36]}  Rd8 {[%clk 0:02:23]} 20. Rfd1 {[%clk 0:01:34]}  Rd7 {[%clk 0:02:15]} 21. a5 {[%clk 0:01:33]}  Qd8 {[%clk 0:02:13]} 22. Qe3 {[%clk 0:01:29]}  Qc7 {[%clk 0:02:05]} 23. Qe5 {[%clk 0:01:23]}  Qd8 {[%clk 0:02:04]} 24. Bc2 {[%clk 0:01:20]}  Rd5 {[%clk 0:02:02]} 25. Qe3 {[%clk 0:01:17]}  Rh5 {[%clk 0:01:53]} 26. h3 {[%clk 0:01:15]}  Qd5 {[%clk 0:01:52]} 27. g4 {[%clk 0:01:13]}  Nxg4 {[%clk 0:01:48]} 28. Qg3 {[%clk 0:01:10]}  Nh6 {[%clk 0:01:30]} 29. Qb8+ {[%clk 0:01:09]} 1-0


[Site "https://www.chess.com"]

[Event "Titled Tuesday Blitz August 22 Late 2023"]
[White "Melikhov, Evgeny V."]
[Black "Gurevich, Dmitry"]
[WhiteFideId "4122046"]
[BlackFideId "2000407"]
[WhiteElo "2394"]
[BlackElo "2517"]
[Result "0-1"]
[Round "4"]
[TimeControl "180+1"]
[Date "2023.08.22"]
[WhiteClock "0:00:28"]
[BlackClock "0:01:16"]
[Board "136"]

1. d4 {[%clk 0:02:59]}  d5 {[%clk 0:02:59]} 2. c4 {[%clk 0:02:59]}  e6 {[%clk 0:02:59]} 3. Nc3 {[%clk 0:02:59]}  a6 {[%clk 0:02:58]} 4. cxd5 {[%clk 0:02:58]}  exd5 {[%clk 0:02:58]} 5. Nf3 {[%clk 0:02:58]}  Nf6 {[%clk 0:02:55]} 6. Bg5 {[%clk 0:02:57]}  Be6 {[%clk 0:02:54]} 7. e3 {[%clk 0:02:57]}  h6 {[%clk 0:02:48]} 8. Bh4 {[%clk 0:02:56]}  c6 {[%clk 0:02:43]} 9. Bd3 {[%clk 0:02:56]}  Nbd7 {[%clk 0:02:41]} 10. O-O {[%clk 0:02:56]}  Bd6 {[%clk 0:02:40]} 11. Bg3 {[%clk 0:02:48]}  Qc7 {[%clk 0:02:39]} 12. Bxd6 {[%clk 0:02:28]}  Qxd6 {[%clk 0:02:39]} 13. h3 {[%clk 0:02:27]}  O-O {[%clk 0:02:37]} 14. a3 {[%clk 0:02:19]}  a5 {[%clk 0:02:34]} 15. Qc2 {[%clk 0:02:15]}  Rfc8 {[%clk 0:02:20]} 16. Na4 {[%clk 0:02:12]}  b6 {[%clk 0:02:05]} 17. Ne5 {[%clk 0:01:58]}  c5 {[%clk 0:02:02]} 18. Nxd7 {[%clk 0:01:52]}  Bxd7 {[%clk 0:01:51]} 19. dxc5 {[%clk 0:01:44]}  bxc5 {[%clk 0:01:49]} 20. Bf5 {[%clk 0:01:36]}  Rab8 {[%clk 0:01:38]} 21. Bxd7 {[%clk 0:01:33]}  Nxd7 {[%clk 0:01:37]} 22. Rfd1 {[%clk 0:01:30]}  Qe5 {[%clk 0:01:34]} 23. Qc3 {[%clk 0:01:21]}  Qxc3 {[%clk 0:01:32]} 24. Nxc3 {[%clk 0:01:18]}  Nf6 {[%clk 0:01:28]} 25. Nxd5 {[%clk 0:01:13]}  Nxd5 {[%clk 0:01:28]} 26. Rxd5 {[%clk 0:01:13]}  Rxb2 {[%clk 0:01:28]} 27. Rc1 {[%clk 0:01:13]}  c4 {[%clk 0:01:24]} 28. Rc3 {[%clk 0:00:59]}  Rb3 {[%clk 0:01:23]} 29. Rc2 {[%clk 0:00:49]}  Rxa3 {[%clk 0:01:20]} 30. Rd4 {[%clk 0:00:48]}  c3 {[%clk 0:01:18]} 31. Rd3 {[%clk 0:00:45]}  Rb3 {[%clk 0:01:17]} 32. Rd4 {[%clk 0:00:28]}  Rb2 {[%clk 0:01:16]} 0-1


[Site "https://www.chess.com"]

[Event "Titled Tuesday Blitz August 22 Late 2023"]
[White "Ansh M Shah"]
[Black "Ozalp, Burak"]
[WhiteFideId "25033379"]
[BlackFideId "6314210"]
[WhiteElo "2516"]
[BlackElo "2388"]
[Result "0-1"]
[Round "4"]
[TimeControl "180+1"]
[Date "2023.08.22"]
[WhiteClock "0:00:05"]
[BlackClock "0:00:18"]
[Board "138"]

1. d4 {[%clk 0:03:00]}  d5 {[%clk 0:02:59]} 2. Nf3 {[%clk 0:03:00]}  Nf6 {[%clk 0:02:58]} 3. g3 {[%clk 0:03:00]}  e6 {[%clk 0:02:58]} 4. Bg2 {[%clk 0:03:01]}  Be7 {[%clk 0:02:58]} 5. O-O {[%clk 0:03:02]}  O-O {[%clk 0:02:59]} 6. b3 {[%clk 0:03:03]}  a5 {[%clk 0:02:56]} 7. a3 {[%clk 0:03:02]}  c6 {[%clk 0:02:55]} 8. Bb2 {[%clk 0:03:03]}  a4 {[%clk 0:02:54]} 9. b4 {[%clk 0:03:03]}  Nbd7 {[%clk 0:02:53]} 10. Nbd2 {[%clk 0:03:03]}  b5 {[%clk 0:02:52]} 11. Ne1 {[%clk 0:03:01]}  Nb6 {[%clk 0:02:52]} 12. Nd3 {[%clk 0:03:02]}  Nfd7 {[%clk 0:02:52]} 13. Nc5 {[%clk 0:03:01]}  Rb8 {[%clk 0:02:33]} 14. e4 {[%clk 0:02:57]}  Nc4 {[%clk 0:02:29]} 15. Nxc4 {[%clk 0:02:56]}  bxc4 {[%clk 0:02:30]} 16. Nxa4 {[%clk 0:02:51]}  Ba6 {[%clk 0:02:20]} 17. Bc3 {[%clk 0:02:44]}  Bf6 {[%clk 0:02:09]} 18. e5 {[%clk 0:02:37]}  Be7 {[%clk 0:02:07]} 19. Nc5 {[%clk 0:02:37]}  Nxc5 {[%clk 0:02:00]} 20. dxc5 {[%clk 0:02:37]}  Ra8 {[%clk 0:01:55]} 21. f4 {[%clk 0:02:27]}  Bb5 {[%clk 0:01:55]} 22. Bd4 {[%clk 0:02:24]}  f5 {[%clk 0:01:53]} 23. exf6 {[%clk 0:02:24]}  Bxf6 {[%clk 0:01:53]} 24. c3 {[%clk 0:02:24]}  Bxd4+ {[%clk 0:01:50]} 25. Qxd4 {[%clk 0:02:25]}  Qf6 {[%clk 0:01:51]} 26. Rfe1 {[%clk 0:02:17]}  Qxd4+ {[%clk 0:01:50]} 27. cxd4 {[%clk 0:02:18]}  Kf7 {[%clk 0:01:47]} 28. Bh3 {[%clk 0:02:16]}  Rfe8 {[%clk 0:01:46]} 29. Re5 {[%clk 0:02:15]}  c3 {[%clk 0:01:42]} 30. Re3 {[%clk 0:02:07]}  c2 {[%clk 0:01:42]} 31. Rc3 {[%clk 0:02:08]}  Ba4 {[%clk 0:01:42]} 32. Kf2 {[%clk 0:02:07]}  g5 {[%clk 0:01:40]} 33. fxg5 {[%clk 0:02:06]}  e5 {[%clk 0:01:40]} 34. dxe5 {[%clk 0:02:04]}  Rxe5 {[%clk 0:01:39]} 35. Re3 {[%clk 0:02:02]}  Rae8 {[%clk 0:01:37]} 36. Rxe5 {[%clk 0:01:55]}  Rxe5 {[%clk 0:01:37]} 37. Bf1 {[%clk 0:01:47]}  d4 {[%clk 0:01:34]} 38. Bd3 {[%clk 0:01:48]}  Re3 {[%clk 0:01:34]} 39. Bxc2 {[%clk 0:01:21]}  Bxc2 {[%clk 0:01:34]} 40. a4 {[%clk 0:01:20]}  Rb3 {[%clk 0:01:28]} 41. a5 {[%clk 0:01:09]}  Rxb4 {[%clk 0:01:08]} 42. a6 {[%clk 0:01:09]}  Rb8 {[%clk 0:01:08]} 43. a7 {[%clk 0:01:08]}  Ra8 {[%clk 0:01:08]} 44. h4 {[%clk 0:00:58]}  Be4 {[%clk 0:01:06]} 45. Ra4 {[%clk 0:00:57]}  Bd5 {[%clk 0:01:04]} 46. Ke2 {[%clk 0:00:55]}  Ke6 {[%clk 0:01:01]} 47. Rxd4 {[%clk 0:00:38]}  Rxa7 {[%clk 0:01:01]} 48. Rf4 {[%clk 0:00:39]}  Ra2+ {[%clk 0:00:59]} 49. Ke3 {[%clk 0:00:37]}  Ra3+ {[%clk 0:00:58]} 50. Kf2 {[%clk 0:00:36]}  Rc3 {[%clk 0:00:58]} 51. Rf6+ {[%clk 0:00:36]}  Ke7 {[%clk 0:00:58]} 52. Rh6 {[%clk 0:00:34]}  Rxc5 {[%clk 0:00:55]} 53. Rxh7+ {[%clk 0:00:34]}  Kf8 {[%clk 0:00:55]} 54. g6 {[%clk 0:00:34]}  Rc2+ {[%clk 0:00:53]} 55. Ke3 {[%clk 0:00:33]}  Kg8 {[%clk 0:00:46]} 56. h5 {[%clk 0:00:23]}  Rc4 {[%clk 0:00:37]} 57. Rc7 {[%clk 0:00:13]}  Rg4 {[%clk 0:00:37]} 58. Rc8+ {[%clk 0:00:08]}  Kg7 {[%clk 0:00:36]} 59. Rc7+ {[%clk 0:00:09]}  Kg8 {[%clk 0:00:32]} 60. Rc8+ {[%clk 0:00:09]}  Kg7 {[%clk 0:00:33]} 61. Rc7+ {[%clk 0:00:09]}  Kf6 {[%clk 0:00:31]} 62. Kf2 {[%clk 0:00:07]}  Rg5 {[%clk 0:00:32]} 63. h6 {[%clk 0:00:06]}  Kxg6 {[%clk 0:00:29]} 64. h7 {[%clk 0:00:06]}  Rh5 {[%clk 0:00:28]} 65. g4 {[%clk 0:00:07]}  Rxh7 {[%clk 0:00:28]} 66. Rc8 {[%clk 0:00:06]}  Kg5 {[%clk 0:00:27]} 67. Kg3 {[%clk 0:00:06]}  Rh1 {[%clk 0:00:20]} 68. Rd8 {[%clk 0:00:02]}  Kf6 {[%clk 0:00:19]} 69. Kf4 {[%clk 0:00:02]}  Rf1+ {[%clk 0:00:19]} 70. Ke3 {[%clk 0:00:02]}  Rf3+ {[%clk 0:00:19]} 71. Ke2 {[%clk 0:00:02]}  Rc3 {[%clk 0:00:18]} 72. Kf2 {[%clk 0:00:02]}  Kg5 {[%clk 0:00:18]} 73. Rd7 {[%clk 0:00:01]}  Rc2+ {[%clk 0:00:18]} 74. Ke3 {[%clk 0:00:02]}  Rc3+ {[%clk 0:00:19]} 75. Kd4 {[%clk 0:00:03]}  Rg3 {[%clk 0:00:18]} 76. Kc5 {[%clk 0:00:03]}  Rxg4 {[%clk 0:00:18]} 77. Rg7+ {[%clk 0:00:03]}  Kf4 {[%clk 0:00:18]} 78. Re7 {[%clk 0:00:03]}  Rg5 {[%clk 0:00:17]} 79. Kd4 {[%clk 0:00:03]}  Rf5 {[%clk 0:00:17]} 80. Kc5 {[%clk 0:00:03]}  Kf3 {[%clk 0:00:18]} 81. Kd4 {[%clk 0:00:04]}  Rf4+ {[%clk 0:00:18]} 82. Kc5 {[%clk 0:00:04]}  Re4 {[%clk 0:00:19]} 83. Rf7+ {[%clk 0:00:03]}  Ke3 {[%clk 0:00:19]} 84. Rf1 {[%clk 0:00:04]}  Kd2 {[%clk 0:00:19]} 85. Rf2+ {[%clk 0:00:05]}  Re2 {[%clk 0:00:19]} 86. Rf4 {[%clk 0:00:05]}  Kd3 {[%clk 0:00:18]} 87. Rh4 {[%clk 0:00:05]}  Be4 {[%clk 0:00:17]} 88. Rh3+ {[%clk 0:00:04]}  Re3 {[%clk 0:00:18]} 89. Rh4 {[%clk 0:00:05]}  Kd2 {[%clk 0:00:16]} 90. Rh2+ {[%clk 0:00:05]}  Re2 {[%clk 0:00:16]} 91. Rh3 {[%clk 0:00:06]}  Kd1 {[%clk 0:00:16]} 92. Rh4 {[%clk 0:00:05]}  Bf3 {[%clk 0:00:15]} 93. Rf4 {[%clk 0:00:04]}  Bd5 {[%clk 0:00:15]} 94. Rh4 {[%clk 0:00:04]}  Kd2 {[%clk 0:00:15]} 95. Rh3 {[%clk 0:00:04]}  Re3 {[%clk 0:00:15]} 96. Rh2+ {[%clk 0:00:05]}  Kc3 {[%clk 0:00:15]} 97. Rh4 {[%clk 0:00:05]}  Kb3 {[%clk 0:00:15]} 98. Rb4+ {[%clk 0:00:05]}  Ka3 {[%clk 0:00:15]} 99. Rh4 {[%clk 0:00:06]}  Rc3+ {[%clk 0:00:15]} 100. Kd4 {[%clk 0:00:06]}  Rc1 {[%clk 0:00:15]} 101. Rh8 {[%clk 0:00:05]}  Kb2 {[%clk 0:00:14]} 102. Rh2+ {[%clk 0:00:05]}  Kb3 {[%clk 0:00:14]} 103. Rh8 {[%clk 0:00:05]}  Rd1+ {[%clk 0:00:14]} 104. Kc5 {[%clk 0:00:06]}  Rc1+ {[%clk 0:00:15]} 105. Kd4 {[%clk 0:00:06]}  Rc4+ {[%clk 0:00:15]} 106. Kd3 {[%clk 0:00:06]}  Kb4 {[%clk 0:00:15]} 107. Rb8+ {[%clk 0:00:07]}  Kc5 {[%clk 0:00:15]} 108. Rb1 {[%clk 0:00:07]}  Rd4+ {[%clk 0:00:15]} 109. Kc3 {[%clk 0:00:07]}  Rh4 {[%clk 0:00:16]} 110. Rb8 {[%clk 0:00:06]}  Rh3+ {[%clk 0:00:16]} 111. Kd2 {[%clk 0:00:07]}  Kd4 {[%clk 0:00:16]} 112. Rb4+ {[%clk 0:00:07]}  Bc4 {[%clk 0:00:16]} 113. Rb8 {[%clk 0:00:07]}  c5 {[%clk 0:00:17]} 114. Rd8+ {[%clk 0:00:07]}  Bd5 {[%clk 0:00:17]} 115. Ra8 {[%clk 0:00:07]}  Rh2+ {[%clk 0:00:18]} 116. Ke1 {[%clk 0:00:07]}  c4 {[%clk 0:00:18]} 117. Ra3 {[%clk 0:00:07]}  Be4 {[%clk 0:00:18]} 118. Ra4 {[%clk 0:00:06]}  Bd3 {[%clk 0:00:18]} 119. Ra8 {[%clk 0:00:06]}  Re2+ {[%clk 0:00:18]} 120. Kd1 {[%clk 0:00:06]}  Rh2 {[%clk 0:00:19]} 121. Ke1 {[%clk 0:00:06]}  Ke3 {[%clk 0:00:18]} 122. Re8+ {[%clk 0:00:06]}  Be4 {[%clk 0:00:19]} 123. Rc8 {[%clk 0:00:05]}  Rh1# {[%clk 0:00:18]} 0-1


[Site "https://www.chess.com"]

[Event "Titled Tuesday Blitz August 22 Late 2023"]
[White "Gallo Garcia, Kemel Antonio"]
[Black "Bogaudinov, Rushan"]
[WhiteFideId "3523896"]
[BlackFideId "4129288"]
[WhiteElo "2509"]
[BlackElo "2374"]
[Result "1-0"]
[Round "4"]
[TimeControl "180+1"]
[Date "2023.08.22"]
[WhiteClock "0:00:06"]
[BlackClock "0:00:00"]
[Board "143"]

1. d4 {[%clk 0:02:52]}  g6 {[%clk 0:02:41]} 2. b3 {[%clk 0:02:48]}  Bg7 {[%clk 0:02:42]} 3. Bb2 {[%clk 0:02:48]}  c5 {[%clk 0:02:42]} 4. Nf3 {[%clk 0:02:48]}  d5 {[%clk 0:02:38]} 5. e3 {[%clk 0:02:46]}  Nc6 {[%clk 0:02:37]} 6. Be2 {[%clk 0:02:41]}  cxd4 {[%clk 0:02:33]} 7. exd4 {[%clk 0:02:42]}  Nf6 {[%clk 0:02:30]} 8. O-O {[%clk 0:02:41]}  O-O {[%clk 0:02:30]} 9. Nbd2 {[%clk 0:02:37]}  Bg4 {[%clk 0:02:29]} 10. Ne5 {[%clk 0:02:36]}  Bxe2 {[%clk 0:02:26]} 11. Qxe2 {[%clk 0:02:37]}  e6 {[%clk 0:02:24]} 12. Rad1 {[%clk 0:02:33]}  Rc8 {[%clk 0:02:11]} 13. c4 {[%clk 0:02:29]}  Qa5 {[%clk 0:02:06]} 14. a3 {[%clk 0:02:27]}  Rfd8 {[%clk 0:01:54]} 15. b4 {[%clk 0:02:22]}  Qa4 {[%clk 0:01:43]} 16. c5 {[%clk 0:02:22]}  a5 {[%clk 0:01:35]} 17. Nxc6 {[%clk 0:02:00]}  bxc6 {[%clk 0:01:35]} 18. bxa5 {[%clk 0:01:59]}  Qxa5 {[%clk 0:01:31]} 19. Qd3 {[%clk 0:01:51]}  Ra8 {[%clk 0:01:26]} 20. Ra1 {[%clk 0:01:44]}  Qa4 {[%clk 0:01:23]} 21. Rfb1 {[%clk 0:01:38]}  Rdb8 {[%clk 0:01:18]} 22. Bc3 {[%clk 0:01:30]}  Nd7 {[%clk 0:01:10]} 23. Nf3 {[%clk 0:01:23]}  Rb3 {[%clk 0:00:56]} 24. h4 {[%clk 0:01:08]}  Nxc5 {[%clk 0:00:49]} 25. dxc5 {[%clk 0:01:05]}  Rxc3 {[%clk 0:00:46]} 26. Qd2 {[%clk 0:00:57]}  Rxc5 {[%clk 0:00:38]} 27. Ra2 {[%clk 0:00:55]}  Rb5 {[%clk 0:00:35]} 28. Rc1 {[%clk 0:00:54]}  c5 {[%clk 0:00:33]} 29. h5 {[%clk 0:00:49]}  c4 {[%clk 0:00:32]} 30. h6 {[%clk 0:00:49]}  Bf6 {[%clk 0:00:31]} 31. Qf4 {[%clk 0:00:49]}  Be7 {[%clk 0:00:20]} 32. Ne5 {[%clk 0:00:35]}  f6 {[%clk 0:00:19]} 33. Nd7 {[%clk 0:00:29]}  Kf7 {[%clk 0:00:18]} 34. Qc7 {[%clk 0:00:24]}  Qa7 {[%clk 0:00:16]} 35. Qc6 {[%clk 0:00:20]}  Rc5 {[%clk 0:00:13]} 36. Nxc5 {[%clk 0:00:20]}  Bxc5 {[%clk 0:00:14]} 37. Re1 {[%clk 0:00:18]}  Re8 {[%clk 0:00:13]} 38. Rae2 {[%clk 0:00:18]}  Qe7 {[%clk 0:00:11]} 39. a4 {[%clk 0:00:18]}  Bb4 {[%clk 0:00:09]} 40. Rd1 {[%clk 0:00:18]}  c3 {[%clk 0:00:09]} 41. Rxd5 {[%clk 0:00:15]}  e5 {[%clk 0:00:06]} 42. Rd7 {[%clk 0:00:14]}  Ba3 {[%clk 0:00:02]} 43. Qc4+ {[%clk 0:00:13]}  Kf8 {[%clk 0:00:01]} 44. Rxe7 {[%clk 0:00:13]}  Bxe7 {[%clk 0:00:02]} 45. Qxc3 {[%clk 0:00:13]}  Rd8 {[%clk 0:00:03]} 46. Rd2 {[%clk 0:00:12]}  Bd6 {[%clk 0:00:02]} 47. Qc6 {[%clk 0:00:11]}  Ke7 {[%clk 0:00:03]} 48. Qb7+ {[%clk 0:00:11]}  Rd7 {[%clk 0:00:03]} 49. Qb5 {[%clk 0:00:09]}  f5 {[%clk 0:00:02]} 50. g3 {[%clk 0:00:08]}  Rc7 {[%clk 0:00:03]} 51. Kg2 {[%clk 0:00:09]}  e4 {[%clk 0:00:03]} 52. Qd5 {[%clk 0:00:09]}  Rd7 {[%clk 0:00:03]} 53. Qg8 {[%clk 0:00:09]}  Kf6 {[%clk 0:00:02]} 54. Rxd6+ {[%clk 0:00:09]}  Rxd6 {[%clk 0:00:02]} 55. Qxh7 {[%clk 0:00:09]}  Kg5 {[%clk 0:00:02]} 56. Qe7+ {[%clk 0:00:08]}  Rf6 {[%clk 0:00:03]} 57. h7 {[%clk 0:00:07]}  e3 {[%clk 0:00:02]} 58. f4+ {[%clk 0:00:06]}  Kg4 {[%clk 0:00:00]} 59. Qxf6 {[%clk 0:00:06]} 1-0


[Site "https://www.chess.com"]